bitfinex-derivatives/quotes_ETHF0:USTF0_20251003
["timestamp","ask_amount","ask_price","bid_price","bid_amount"]
[1759515019437,3.2078,4475.2,4475.1,1.1164]
[1759515019848,3.2078,4475.2,4475.1,1.1154]
[1759515020346,3.20957227,4475.2,4475.1,1.1154]
[1759515020543,3.20957227,4475.2,4474.6,0.8864]
[1759515020844,3.61155227,4475.2,4475.0,0.3455]
[1759515021046,3.61155227,4475.2,4475.1,1.1154]
[1759515021240,3.20957227,4475.2,4475.1,1.1154]
[1759515021544,0.00177227,4475.2,4475.1,1.1154]
[1759515022140,0.00177227,4475.2,4475.1,0.8864]
[1759515022444,0.00177227,4475.2,4475.1,1.1154]
[1759515022634,0.00177227,4475.2,4475.0,0.3455]
[1759515022635,0.40198,4475.1,4475.0,0.3455]
[1759515022840,0.40198,4475.1,4475.0,0.5745]
[1759515023148,0.40198,4475.1,4475.0,1.4609]
[1759515023949,0.40198,4475.1,4475.0,1.2319]
[1759515024342,0.40202,4474.6,4474.5,1.2319]
[1759515024543,3.60982,4474.6,4474.5,1.2319]
[1759515024848,0.40207,4474.1,4474.0,1.2319]
[1759515025147,3.2078,4474.6,4474.5,1.2319]
[1759515025449,3.2078,4474.6,4474.5,1.4609]
[1759515025644,0.00177227,4475.2,4475.0,1.2319]
[1759515025645,3.2078,4475.1,4475.0,1.2319]
[1759515025845,3.2078,4475.1,4475.0,1.4609]
[1759515026047,0.00177227,4475.2,4475.1,1.28838]
[1759515026345,3.2078,4476.6,4476.2,0.8864]
[1759515026548,3.60964,4476.6,4476.5,1.2319]
[1759515026736,3.2078,4476.6,4476.5,1.2319]
[1759515027243,3.21011233,4476.6,4476.5,1.23354651]
[1759515027945,0.00231233,4476.6,4476.5,4.44134651]
[1759515028251,0.00231233,4476.6,4476.5,9.44134651]
[1759515028543,0.00231233,4476.6,4476.5,3.12593709]
[1759515028743,1.00464,4476.5,4475.6,0.848]
[1759515028949,0.40189,4476.1,4476.0,1.1724]
[1759515029246,0.40189,4476.1,4476.0,1.4014]
[1759515029453,0.40189,4476.1,4476.0,1.1724]
[1759515029641,0.40189,4476.1,4476.0,1.17506169]
[1759515029846,0.40189,4476.1,4476.0,0.32706169]
[1759515030048,8.37279006,4476.1,4476.0,1.69e-06]
[1759515030941,0.40197,4475.2,4475.1,0.848]
[1759515031144,3.60977,4475.2,4475.1,0.848]
[1759515031452,0.40202,4474.6,4474.5,1.1724]
[1759515031652,3.60982,4474.6,4474.5,1.1724]
[1759515031955,3.60982,4474.6,4474.5,0.68692879]
[1759515032155,3.60982,4474.6,4474.5,0.00229879]
[1759515032156,6.4622933,4474.6,4474.5,0.00229879]
[1759515032356,6.4622933,4474.6,4474.5,0.33889879]
[1759515032849,3.2078,4474.6,4474.5,0.33889879]
[1759515034045,3.60982,4474.6,4474.5,1.17269879]
[1759515034250,11.50455728,4474.6,4474.5,0.00229879]
[1759515034449,11.50455728,4474.6,4474.5,8.79e-06]
[1759515035051,0.40211,4473.7,4473.6,0.8338]
[1759515035356,0.40211,4473.7,4473.5,0.3244]
[1759515035357,3.6099,4473.8,4473.5,0.3244]
[1759515035550,3.2078,4473.8,4473.7,0.8338]
[1759515035953,3.2078,4473.8,4473.7,0.83610607]
[1759515036153,3.2078,4473.8,4473.7,0.00230607]
[1759515037353,6.07936623,4473.8,4473.7,0.00230607]
[1759515038054,0.40214,4473.3,4473.2,0.8338]
[1759515038363,3.60994,4473.3,4473.2,0.8338]
[1759515038549,3.2078,4473.3,4473.2,0.8338]
[1759515038749,3.2078,4473.3,4473.2,1.23595]
[1759515038954,3.20950329,4473.3,4473.2,0.83623662]
[1759515039954,0.00170329,4473.3,4473.2,5.83623662]
[1759515040158,2.3277,4473.8,4473.7,1.23591]
[1759515040460,3.9738,4475.4,4474.7,0.8338]
[1759515040756,3.2078,4475.4,4475.2,0.40196]
[1759515040966,3.2078,4475.4,4475.3,0.8338]
[1759515041164,3.21020396,4475.4,4475.3,0.8338]
[1759515041567,3.61215396,4475.4,4475.3,1.0628]
[1759515041866,0.00240396,4475.4,4475.3,6.46476]
[1759515042167,0.00240396,4475.4,4475.3,1.0628]
[1759515043261,0.40435396,4475.4,4475.3,1.0628]
[1759515043457,0.00240396,4475.4,4475.3,1.0628]
[1759515043653,0.00240396,4475.4,4475.3,1.46476]
[1759515044256,3.2078,4476.6,4476.3,0.40186]
[1759515044456,3.60965,4476.6,4476.5,0.8338]
[1759515044671,3.2078,4476.6,4476.5,1.0628]
[1759515045466,3.21025409,4476.6,4476.5,1.0650442]
[1759515045858,0.00245409,4476.6,4476.5,6.4016442]
[1759515046463,0.00245409,4476.6,4476.5,0.8360442]
[1759515046669,0.00245409,4476.6,4476.5,1.0650442]
[1759515046968,0.00245409,4476.6,4476.5,0.8360442]
[1759515047168,0.00245409,4476.6,4476.5,1.0650442]
[1759515048267,0.00245409,4476.6,4476.5,0.8360442]
[1759515048467,0.00245409,4476.6,4476.5,1.0650442]
[1759515048968,0.00245409,4476.6,4476.5,0.2312442]
[1759515048969,0.80595409,4476.6,4476.5,0.2312442]
[1759515049664,0.00245409,4476.6,4476.5,1.0650442]
[1759515049865,0.80595409,4476.6,4476.5,0.2312442]
[1759515050171,0.80595409,4476.6,4476.5,0.0022442]
[1759515050368,0.00245409,4476.6,4476.5,1.4016442]
[1759515050573,0.00245409,4476.6,4476.5,6.4016442]
[1759515050769,0.00245409,4476.6,4476.5,1.4016442]
[1759515051469,0.00245409,4476.6,4476.5,4.6094442]
[1759515052170,0.022,4477.9,4477.5,0.8338]
[1759515052171,0.40176,4477.6,4477.5,0.8338]
[1759515052472,0.40174,4477.8,4477.6,0.40175]
[1759515052673,0.40174,4477.8,4477.7,0.8338]
[1759515052873,1.20524,4477.8,4477.7,0.8338]
[1759515053078,1.20698806,4477.8,4477.7,0.8338]
[1759515053369,0.00174806,4477.8,4477.7,0.8338]
[1759515053773,3.2078,4479.2,4478.6,1.23546]
[1759515054072,0.40159,4479.5,4478.9,3.2078]
[1759515054375,0.3356,4480.0,4479.0,0.3366]
[1759515054674,3.2078,4479.9,4479.1,0.8338]
[1759515054874,0.40161,4479.3,4479.1,0.8338]
[1759515055066,0.4016,4479.3,4479.2,0.229]
[1759515055266,3.2078,4479.4,4479.2,0.63061]
[1759515055472,0.40158,4479.6,4479.3,0.8338]
[1759515055670,0.40156,4479.8,4479.5,0.8338]
[1759515055976,0.40156,4479.8,4479.4,0.63059]
[1759515056169,0.00277323,4480.0,4479.4,1.0628]
[1759515056368,0.00277323,4480.0,4479.6,0.40158]
[1759515056568,0.40156,4479.9,4479.7,0.8338]
[1759515056772,0.40156,4479.9,4479.7,0.00236518]
[1759515056970,0.40432323,4480.0,4479.7,0.40392518]
[1759515057274,0.40156,4479.9,4479.7,0.00236518]
[1759515057469,0.40156,4479.9,4479.8,0.8338]
[1759515058074,0.8035,4479.8,4479.7,0.00236518]
[1759515058277,0.40156,4479.9,4479.8,0.8338]
[1759515058473,0.00277323,4480.0,4479.8,0.8338]
[1759515058674,0.00277323,4480.0,4479.7,0.23136518]
[1759515058675,0.00277323,4480.0,4479.9,0.40155]
[1759515058874,0.00277323,4480.0,4479.9,0.8338]
[1759515059379,0.00277323,4480.0,4479.9,1.23535]
[1759515060179,0.00277323,4480.0,4479.9,6.23535]
[1759515060570,0.00277323,4480.0,4479.9,6.46435]
[1759515060775,0.00277323,4480.0,4479.9,0.8338]
[1759515061481,0.00277323,4480.0,4479.9,1.0628]
[1759515061677,0.00277323,4480.0,4479.9,0.8338]
[1759515061877,0.8035,4479.8,4479.7,0.00236518]
[1759515062176,0.8035,4479.8,4479.7,0.23136518]
[1759515062673,0.8035,4479.8,4479.7,0.00236518]
[1759515062875,0.00277323,4480.0,4479.9,0.8677]
[1759515063672,0.00277323,4480.0,4479.9,1.0967]
[1759515063873,0.40155,4479.9,4479.7,4.07786518]
[1759515064074,0.40155,4479.9,4479.8,1.0967]
[1759515064872,0.00277323,4480.0,4479.9,0.8677]
[1759515065381,0.40147,4480.9,4480.8,0.8677]
[1759515065683,0.40143,4481.3,4480.8,0.229]
[1759515065870,0.40142,4481.4,4481.1,0.8677]
[1759515066077,0.8098,4481.3,4481.2,0.229]
[1759515066373,0.8098,4481.2,4480.2,0.8677]
[1759515066679,0.40144,4481.2,4480.6,0.8677]
[1759515066881,0.00257011,4481.3,4480.7,0.63048]
[1759515067071,0.00257011,4481.3,4480.7,0.229]
[1759515067276,0.00257011,4481.3,4481.1,0.8677]
[1759515067474,0.81237011,4481.3,4481.2,0.229]
[1759515067675,0.00257011,4481.3,4481.2,1.0967]
[1759515068373,0.00257011,4481.3,4481.2,1.2713109]
[1759515068678,0.00257011,4481.3,4481.2,1.0967]
[1759515069384,0.8098,4481.1,4480.5,4.4255]
[1759515069677,0.00257011,4481.3,4479.7,0.00236518]
[1759515069678,0.40153,4480.1,4480.0,4.0755]
[1759515069871,0.8098,4480.1,4480.0,4.3045]
[1759515070073,0.8098,4480.7,4480.1,1.26922]
[1759515070273,3.2078,4480.8,4480.6,0.40148]
[1759515070580,0.00257011,4481.3,4480.9,0.40145]
[1759515070877,0.00257011,4481.3,4480.7,3.4368]
[1759515071082,0.40144,4481.1,4480.7,3.83827]
[1759515071285,0.40144,4481.1,4480.8,0.8677]
[1759515071490,0.40400011,4481.3,4481.1,0.8677]
[1759515071681,0.00257011,4481.3,4481.2,1.0967]
[1759515071881,0.00257011,4481.3,4481.2,4.3045]
[1759515072077,1.1e-07,4481.3,4481.2,4.3045]
[1759515073782,0.40142011,4481.3,4481.2,4.0755]
[1759515073979,1.21122011,4481.3,4481.2,3.4368]
[1759515074186,1.1e-07,4481.3,4481.2,3.4368]
[1759515077186,1.1e-07,4481.3,4481.2,3.2078]
[1759515077381,0.8318,4482.9,4481.3,1.00356]
[1759515077581,0.022,4482.9,4482.3,0.8677]
[1759515077791,0.40137,4481.9,4481.6,3.2078]
[1759515077988,0.8098,4481.9,4481.1,0.8677]
[1759515078185,1.21117,4481.9,4481.3,0.8677]
[1759515078487,0.40138,4481.8,4481.4,0.8677]
[1759515078690,0.40138,4481.8,4481.7,0.8677]
[1759515079580,0.8098,4481.8,4481.7,0.8677]
[1759515079781,0.00236131,4481.9,4481.8,0.8677]
[1759515079985,0.00236131,4481.9,4481.8,1.0967]
[1759515080982,0.40139,4481.8,4481.5,4.0755]
[1759515081285,0.00236131,4481.9,4481.7,0.40139]
[1759515081492,0.00236131,4481.9,4481.8,0.8677]
[1759515082888,0.40125,4483.3,4481.8,5.8677]
[1759515083094,3.2078,4483.3,4482.8,1.26899]
[1759515083284,0.8098,4483.4,4482.8,1.49799]
[1759515083485,0.40125,4483.3,4482.8,1.49799]
[1759515083892,0.40127,4483.0,4482.8,0.8677]
[1759515084087,0.83378598,4482.9,4482.8,0.8677]
[1759515084286,0.83378598,4482.9,4482.8,1.0967]
[1759515084485,0.83378598,4482.9,4482.8,0.229]
[1759515084687,0.8098,4482.8,4482.3,3.2078]
[1759515084888,6.06636355,4482.9,4482.6,0.8677]
[1759515085090,0.42526598,4482.9,4482.8,0.8677]
[1759515085287,0.02398598,4482.9,4482.8,0.8677]
[1759515089191,0.02398598,4482.9,4482.8,1.0967]
[1759515090387,0.02398598,4482.9,4482.8,0.8677]
[1759515090589,0.02398598,4482.9,4482.8,1.0967]
[1759515091086,0.42526598,4482.9,4482.8,0.8677]
[1759515091290,0.42526598,4482.9,4482.5,0.8241]
[1759515091291,0.40131,4482.6,4482.5,0.8241]
[1759515091492,0.02398598,4482.9,4482.8,0.8241]
[1759515091684,0.02398598,4482.9,4482.8,1.0531]
[1759515091894,0.87218598,4482.9,4482.8,1.0531]
[1759515092090,0.02398598,4482.9,4482.8,1.0531]
[1759515092298,0.02398598,4482.9,4482.8,4.2609]
[1759515092592,0.7844,4484.7,4484.4,0.40114]
[1759515092794,0.7844,4484.9,4484.5,0.229]
[1759515092994,0.7844,4484.9,4484.7,1.24341]
[1759515093292,0.3206,4486.0,4484.9,0.8423]
[1759515093293,0.40109,4485.1,4484.9,0.8423]
[1759515093487,3.2078,4485.0,4484.9,0.00234029]
[1759515093688,3.2078,4485.0,4483.5,0.3129]
[1759515093689,0.7844,4483.7,4483.6,0.8423]
[1759515093990,0.40123,4483.5,4483.4,0.8423]
[1759515094196,0.7844,4483.6,4483.5,0.40122]
[1759515094794,0.7844,4483.6,4483.5,0.84410197]
[1759515094989,0.7844,4483.6,4483.5,0.23080197]
[1759515095290,0.7844,4484.2,4484.1,1.24347]
[1759515095491,0.7844,4484.9,4483.7,3.2078]
[1759515095690,3.2078,4484.6,4483.7,3.2078]
[1759515095886,1.1856,4483.9,4483.8,0.229]
[1759515096088,0.40116,4484.3,4484.1,0.8423]
[1759515096290,0.40116,4484.3,4484.2,0.229]
[1759515096589,1.18556,4484.3,4484.2,0.229]
[1759515096793,0.40115,4484.4,4484.3,0.8423]
[1759515096997,0.7844,4484.5,4483.9,1.24348]
[1759515096998,0.7844,4484.0,4483.9,1.24348]
[1759515097198,3.2078,4484.5,4484.4,0.40115]
[1759515097498,3.2078,4484.5,4484.4,1.0713]
[1759515097499,0.7844,4484.5,4484.4,1.0713]
[1759515098093,0.7844,4484.5,4484.4,0.229]
[1759515098289,1.00276,4484.9,4484.1,0.8423]
[1759515098490,0.4012,4483.9,4483.7,1.24351]
[1759515098798,0.7844,4483.8,4483.7,0.8423]
[1759515098993,0.7844,4483.6,4483.5,0.00180197]
[1759515099196,0.7844,4484.3,4483.5,0.23080197]
[1759515099404,0.40119,4484.0,4483.6,0.8423]
[1759515099601,0.7844,4484.4,4484.0,0.40118]
[1759515099803,0.40115,4484.3,4484.2,0.8423]
[1759515100003,1.18555,4484.3,4484.2,0.8423]
[1759515100299,0.4012,4483.8,4483.7,0.8423]
[1759515100491,1.18562,4483.6,4483.5,0.00180197]
[1759515100696,1.18562,4483.6,4483.5,0.23080197]
[1759515100899,9.05904731,4483.6,4483.5,0.00180197]
[1759515101094,9.05904731,4483.6,4483.5,0.23080197]
[1759515101393,9.05904731,4483.6,4483.5,0.00180197]
[1759515101597,3.2078,4483.8,4483.5,0.00180197]
[1759515101598,3.2078,4483.8,4483.5,1.07310197]
[1759515101800,0.7844,4483.6,4483.5,0.00180197]
[1759515102000,0.7844,4483.6,4483.5,0.23080197]
[1759515102207,3.74476149,4483.6,4483.5,0.23080197]
[1759515102698,0.7844,4483.6,4483.5,0.23080197]
[1759515103098,1.18562,4483.6,4483.5,0.23080197]
[1759515103292,9.0478355,4483.6,4483.5,0.23080197]
[1759515103594,2.00577,4484.4,4483.5,0.23080197]
[1759515103595,0.7844,4485.0,4483.5,5.54370197]
[1759515103898,3.6466155,4484.4,4483.6,0.229]
[1759515104098,1.18561,4483.7,4483.6,0.229]
[1759515104303,1.18561,4483.7,4483.6,1.0713]
[1759515104601,0.7844,4483.6,4483.5,0.00180197]
[1759515104796,3.9922,4483.6,4483.5,0.00180197]
[1759515105004,6.87082741,4483.6,4483.5,0.00180197]
[1759515105200,6.87082741,4483.6,4483.5,0.23080197]
[1759515106501,3.66302741,4483.6,4483.5,0.23080197]
[1759515106895,6.87082741,4483.6,4483.5,0.00180197]
[1759515107096,0.40132,4482.4,4482.3,0.8423]
[1759515107296,0.40132,4482.4,4482.0,0.3129]
[1759515107297,0.40135,4482.1,4482.0,0.8423]
[1759515107500,0.40135,4482.1,4482.0,1.0713]
[1759515107700,1.18575,4482.1,4482.0,0.8423]
[1759515107902,0.4014,4481.6,4481.3,1.1966981]
[1759515108200,0.40141,4481.5,4481.4,0.229]
[1759515108394,1.18581,4481.5,4481.4,1.0713]
[1759515108601,0.40141,4481.5,4481.4,1.0713]
[1759515109199,0.00265756,4481.6,4481.4,1.0713]
[1759515109401,3.2078,4482.8,4481.6,0.8423]
[1759515109710,1.18573,4482.4,4482.2,0.8423]
[1759515109906,0.40135,4482.2,4482.0,4.363]
[1759515110208,0.40139,4481.7,4481.6,2.0389981]
[1759515110506,0.40331339,4481.7,4481.6,1.0713]
[1759515110707,0.40331339,4481.7,4481.6,0.8423]
[1759515110906,0.40331339,4481.7,4481.6,1.0713]
[1759515111106,0.40331339,4481.7,4481.6,0.8423]
[1759515111300,0.40331339,4481.7,4481.6,1.0713]
[1759515112104,0.40141,4481.5,4481.4,1.1966981]
[1759515112400,0.40141,4481.5,4481.4,2.2679981]
[1759515112606,0.40141,4481.5,4481.4,1.0713]
[1759515113207,1.18581,4481.5,4481.4,1.0713]
[1759515113605,1.18581,4481.5,4481.4,0.8423]
[1759515113809,0.7844,4481.4,4481.3,0.00158684]
[1759515114105,3.9922,4481.4,4481.3,0.00158684]
[1759515114312,3.9922,4481.4,4481.3,0.23058684]
[1759515114604,0.40149,4480.6,4480.5,1.1966981]
[1759515114811,0.40149,4480.6,4480.5,0.229]
[1759515115312,1.00357,4481.3,4480.5,0.229]
[1759515115613,0.40145,4481.0,4480.9,0.8423]
[1759515115908,0.40145,4481.0,4480.9,1.0713]
[1759515116107,0.40145,4481.0,4480.9,2.2679981]
[1759515116303,0.40145,4481.0,4480.9,1.0713]
[1759515116704,0.40146,4480.9,4480.5,0.31533547]
[1759515116910,1.00540339,4481.7,4480.8,3.2078]
[1759515117107,0.40141,4481.5,4481.3,3.60922]
[1759515117408,0.40141,4481.5,4481.4,0.8423]
[1759515117606,0.40141,4481.5,4481.4,1.0713]
[1759515118012,0.4040639,4481.5,4481.4,1.0713]
[1759515118710,1.1884639,4481.5,4481.3,3.2078]
[1759515118908,0.40144,4481.1,4481.0,2.0389981]
[1759515119212,0.40144,4481.1,4481.0,1.3842]
[1759515119711,0.40144,4481.1,4481.0,1.1552]
[1759515119913,0.40143,4481.3,4481.2,0.8423]
[1759515120213,0.40143,4481.3,4481.2,1.0713]
[1759515120511,0.4040639,4481.5,4481.4,0.8423]
[1759515120813,0.4040639,4481.5,4481.4,4.0501]
[1759515121011,0.0026539,4481.5,4481.4,4.2791]
[1759515122416,0.0026539,4481.5,4481.4,4.0501]
[1759515122717,1.2542639,4481.5,4481.4,0.229]
[1759515123119,0.0026539,4481.5,4481.4,0.229]
[1759515123413,0.40132,4482.5,4482.3,0.40133]
[1759515123615,1.0032,4483.0,4481.5,0.3204]
[1759515123616,0.40128,4483.0,4482.5,0.3204]
[1759515123914,4.3919,4483.5,4482.4,0.229]
[1759515123915,0.40131,4482.6,4482.4,1.19584138]
[1759515124113,3.5417,4483.5,4482.2,3.60914]
[1759515124114,0.8502,4483.3,4482.5,0.5494]
[1759515124417,0.4013,4482.7,4482.5,1.74524138]
[1759515124619,0.40129,4482.9,4482.6,1.2582]
[1759515124814,0.4013,4482.7,4482.5,3.00345138]
[1759515125015,0.4013,4482.7,4482.2,3.2078]
[1759515125016,1.25152,4482.5,4482.4,1.19584138]
[1759515125317,1.25152,4482.5,4482.4,0.229]
[1759515125523,1.25153,4482.3,4482.2,1.19584138]
[1759515125710,0.40135,4482.1,4482.0,1.19584138]
[1759515126020,0.8502,4482.1,4482.0,0.229]
[1759515126220,0.40135,4482.1,4482.0,1.19584138]
[1759515126422,1.25155,4482.1,4482.0,0.229]
[1759515126715,1.33699,4483.5,4482.0,0.229]
[1759515126716,0.40127,4483.1,4482.9,0.40128]
[1759515127020,3.2078,4484.0,4483.2,0.8569]
[1759515127221,0.8502,4484.3,4483.2,0.8569]
[1759515127518,0.4012,4483.9,4483.2,35.84134858]
[1759515127718,0.40119,4483.9,4483.2,36.47159858]
[1759515127919,1.25139,4484.0,4483.2,36.47159858]
[1759515128117,0.8502,4484.0,4483.2,1.43959858]
[1759515128319,0.8502,4484.0,4483.2,1.66859858]
[1759515128513,1.25139,4484.0,4483.2,1.66859858]
[1759515128714,1.25319244,4483.3,4483.2,0.229]
[1759515128920,0.00175244,4483.3,4483.2,2.28265018]
[1759515129110,0.00175244,4483.3,4483.2,2.68390018]
[1759515129312,1.25319244,4483.3,4483.2,1.19675018]
[1759515129510,0.40128,4482.9,4482.8,1.19675018]
[1759515129717,0.8502,4482.8,4482.7,1.19675018]
[1759515129919,0.8502,4482.8,4482.7,1.42575018]
[1759515130311,0.8502,4482.8,4482.7,1.19675018]
[1759515130516,0.40132,4482.5,4482.4,1.19675018]
[1759515130716,1.25152,4482.5,4482.4,1.42575018]
[1759515130921,1.25152,4482.5,4482.4,0.229]
[1759515131315,0.4013,4482.7,4482.5,0.40131]
[1759515131620,1.58542,4482.5,4482.3,1.19736381]
[1759515131816,0.8502,4482.4,4482.3,1.19736381]
[1759515132229,1.00332,4482.4,4481.8,1.19736381]
[1759515132424,0.3339,4482.5,4481.7,1.19736381]
[1759515132721,0.3339,4482.5,4481.6,0.40139]
[1759515132722,0.40136,4482.0,4481.8,1.19736381]
[1759515132918,0.40136,4482.0,4481.9,0.229]
[1759515133319,1.25158,4481.8,4481.6,1.19736381]
[1759515133520,0.8502,4481.7,4481.6,1.19736381]
[1759515133721,0.8502,4481.7,4481.6,1.42636381]
[1759515134114,0.4014,4481.6,4481.5,1.19736381]
[1759515134319,1.2516,4481.6,4481.5,0.229]
[1759515134725,0.8502,4481.6,4481.5,0.229]
[1759515135324,0.3339,4481.5,4481.2,1.19736381]
[1759515135520,0.8502,4481.0,4480.9,1.19736381]
[1759515135715,1.1841,4481.0,4480.9,1.42636381]
[1759515135918,0.8502,4481.0,4480.8,0.8569]
[1759515136125,0.40146,4480.9,4480.8,0.8569]
[1759515136525,0.40146,4480.9,4480.8,1.0859]
[1759515136726,1.25166,4480.9,4480.8,0.229]
[1759515137026,0.40146,4480.9,4480.8,0.229]
[1759515137228,0.40146,4480.9,4480.7,1.19736381]
[1759515137428,0.3339,4481.0,4480.8,0.229]
[1759515137629,1.25165,4481.0,4480.8,0.229]
[1759515138124,0.40145,4481.0,4480.8,0.229]
[1759515138329,0.8502,4480.9,4480.8,0.229]
[1759515139232,0.8502,4481.4,4480.8,1.0859]
[1759515139424,0.40139,4481.7,4481.4,0.40141]
[1759515139623,0.40139,4481.7,4481.5,1.0859]
[1759515139930,1.25158,4481.8,4481.6,0.229]
[1759515140129,0.8502,4481.2,4481.0,5.66350381]
[1759515140329,3.2078,4482.1,4481.2,1.25833]
[1759515140330,0.40141,4481.5,4481.2,1.25833]
[1759515140528,0.40142,4481.4,4481.3,0.8569]
[1759515140723,1.25164,4481.1,4481.0,1.19736381]
[1759515141024,0.8502,4481.0,4480.9,1.19736381]
[1759515141222,0.8502,4481.0,4480.9,1.42636381]
[1759515141617,3.5417,4481.5,4480.9,1.42636381]
[1759515141618,1.25162,4481.4,4480.9,1.82782381]
[1759515141817,0.8502,4481.9,4481.0,3.2078]
[1759515142024,0.40136,4482.0,4481.2,1.19736381]
[1759515142230,0.40138,4481.9,4481.3,2.28326381]
[1759515142422,1.25161,4481.5,4481.3,2.05426381]
[1759515142623,1.25161,4481.5,4481.4,0.229]
[1759515143126,0.8502,4481.5,4481.4,0.229]
[1759515143731,0.3339,4482.0,4481.4,1.0859]
[1759515143928,0.40138,4481.8,4481.5,0.40141]
[1759515144129,1.25161,4481.5,4481.4,1.42636381]
[1759515144330,1.25161,4481.5,4481.4,0.229]
[1759515144623,0.8502,4481.4,4481.3,1.19736381]
[1759515144828,0.40142,4481.3,4481.2,1.19736381]
[1759515145018,0.3339,4481.0,4480.8,1.19736381]
[1759515145224,1.58555,4481.0,4480.9,0.229]
[1759515145821,0.40142,4481.4,4480.9,1.0859]
[1759515146026,0.40143,4481.3,4481.1,0.40144]
[1759515146228,0.40143,4481.3,4481.2,1.0859]
[1759515146730,0.40144,4481.1,4480.8,3.2078]
[1759515146923,0.40144,4481.1,4479.7,1.99263902]
[1759515146924,0.40156,4479.8,4479.7,1.99263902]
[1759515147130,0.40156,4479.8,4479.7,1.0728]
[1759515147629,0.40155,4480.0,4479.8,0.8438]
[1759515147833,0.40313314,4480.0,4479.8,0.84572068]
[1759515148127,0.40313314,4480.0,4479.9,0.8438]
[1759515148825,0.00158314,4480.0,4479.9,0.8438]
[1759515149437,1.00357,4481.3,4480.6,0.8438]
[1759515149725,0.40144,4481.1,4481.0,0.3342]
[1759515150028,3.2078,4481.5,4481.0,0.5632]
[1759515150232,1.96295096,4484.5,4481.6,0.8438]
[1759515150233,3.7581,4483.7,4481.6,0.8438]
[1759515150429,0.55243591,4483.7,4482.7,0.8438]
[1759515150732,3.48242759,4483.7,4482.9,0.8438]
[1759515151027,0.40127,4483.0,4482.9,0.8438]
[1759515151225,0.5503,4483.5,4482.6,3.2078]
[1759515151528,0.40131,4482.6,4482.4,0.8438]
[1759515151726,0.40131,4482.6,4482.5,0.229]
[1759515152134,0.40134,4482.3,4482.1,3.9831]
[1759515152325,0.40134,4482.3,4482.2,0.229]
[1759515152729,0.40137,4482.0,4481.7,0.7753]
[1759515153031,0.40135,4482.2,4481.9,0.7753]
[1759515153236,2.92080876,4482.7,4481.8,0.229]
[1759515153430,0.40139,4481.7,4481.6,3.2078]
[1759515153634,0.5785,4482.0,4481.6,1.0043]
[1759515153934,0.40139,4481.8,4481.7,0.7753]
[1759515154134,2.88061504,4482.2,4481.6,1.0043]
[1759515154438,0.40138,4481.8,4481.7,0.7753]
[1759515154620,0.40136,4482.1,4482.0,1.103]
[1759515154828,3.2078,4482.8,4482.0,1.332]
[1759515155027,6.11847511,4482.8,4482.0,1.332]
[1759515155228,3.2078,4482.8,4482.0,1.332]
[1759515155535,0.40135,4482.2,4482.1,0.229]
[1759515155928,0.40133,4482.4,4482.1,0.229]
[1759515156129,0.40134,4482.2,4482.1,0.229]
[1759515156524,0.40134,4482.2,4482.1,1.0043]
[1759515157129,0.40134,4482.3,4482.2,0.7753]
[1759515158433,0.5785,4482.2,4482.1,0.229]
[1759515159432,0.40134,4482.3,4482.2,0.7753]
[1759515160434,0.5785,4482.7,4482.2,0.7753]
[1759515160435,0.40133,4482.4,4482.2,0.7753]
[1759515160636,0.40134,4482.3,4482.1,1.40565]
[1759515160836,0.40134,4482.3,4482.2,0.7753]
[1759515161336,0.40134,4482.3,4482.1,0.63035]
[1759515161530,0.40134,4482.3,4482.2,0.7753]
[1759515161734,3.2078,4482.8,4482.2,0.7753]
[1759515162239,2.9267426,4482.7,4482.2,0.7753]
[1759515162435,0.5785,4482.2,4482.1,0.229]
[1759515162832,0.5785,4482.2,4481.1,3.38898283]
[1759515162833,0.4014,4481.6,4481.5,1.103]
[1759515163033,0.4014,4481.6,4481.5,1.332]
[1759515163230,0.4014,4481.6,4481.5,1.103]
[1759515163434,0.4014,4481.6,4481.5,1.332]
[1759515163731,0.4014,4481.6,4481.5,1.0043]
[1759515164529,3.2078,4481.8,4481.6,0.7753]
[1759515164736,0.40139,4481.7,4481.6,0.7753]
[1759515165636,0.40139,4481.7,4481.5,0.229]
[1759515165841,0.40139,4481.7,4481.6,0.7753]
[1759515166537,1.0034,4482.1,4481.6,0.7753]
[1759515166538,0.40138,4481.9,4481.6,3.9831]
[1759515166733,3.2078,4482.8,4482.0,0.3277]
[1759515167035,0.40134,4482.2,4482.1,1.0043]
[1759515167241,0.40134,4482.2,4482.0,1.0043]
[1759515167642,0.40134,4482.2,4482.1,0.7753]
[1759515168945,1.00344,4481.9,4481.6,0.7753]
[1759515169240,0.40139,4481.7,4481.6,0.7753]
[1759515169440,0.40139,4481.7,4481.6,1.0043]
[1759515170043,3.60919,4481.7,4481.6,1.0043]
[1759515170242,0.40149,4480.6,4480.2,1.59471421]
[1759515170442,0.40149,4480.6,4480.1,3.2078]
[1759515170443,0.40149,4480.6,4480.5,0.5567]
[1759515171242,0.40144,4481.2,4481.0,0.3277]
[1759515171439,0.40144,4481.2,4481.1,3.4368]
[1759515172140,0.40144,4481.2,4481.1,1.0043]
[1759515172737,0.40144,4481.2,4481.1,0.7753]
[1759515172943,0.40148,4480.7,4480.5,0.3277]
[1759515173143,0.40148,4480.7,4480.6,1.0043]
[1759515173738,0.40148,4480.7,4480.6,0.7753]
[1759515173739,1.20948,4480.7,4480.6,0.7753]
[1759515173938,1.20948,4480.7,4480.6,1.0043]
[1759515173939,0.40148,4480.7,4480.6,1.0043]
[1759515174248,0.40148,4480.8,4480.7,0.7753]
[1759515175442,0.40148,4480.8,4480.7,1.0043]
[1759515175943,0.40148,4480.8,4480.5,0.3277]
[1759515175944,0.808,4480.8,4480.2,0.7753]
[1759515176145,0.40149,4480.5,4480.4,0.7753]